Cogmind - Beta 16 @@@ ROGUE MODE // 2025.10.27 @ 03:18:22 Player: AshCrow Result: Destroyed by H-71 Marshal with Heavy Mass Driver Performance ------------- Evolutions (6) 3000 Regions Visited (13) 2600 Robots Destroyed (65) 325 Value Destroyed (2361) 2361 Prototype IDs (1) 20 Alien Tech Used (0) 0 Bonus (48) 48 TOTAL SCORE: 8354 Bonus ------- Follower Combat Kills 48 Cogmind --------- Core Integrity 0/1150 Matter 300/300 Energy 36/100 System Corruption 3% Temperature Cool (9) Movement Core (50) Location -4/Armory Parts ------- > --- POWER (3) -------- (None) > --- PROPULSION (6) --- (None) > --- UTILITY (5) ------ Advanced Coolant Injector Advanced Targeting Computer Graphene Brace > --- WEAPON (5) ------- (None) > --- INVENTORY (5) ---- Active Sensor Suite Light Armor Plating Enhanced Force Lance Peak State ------------ > --- POWER ------------ Light Antimatter Reactor Light Antimatter Reactor > --- PROPULSION ------- Nuclear Pulse Array Nuclear Pulse Array Nuclear Pulse Array > --- UTILITY ---------- Advanced Coolant Injector Weight Redist. System Advanced Targeting Computer Advanced Cloaking Device Graphene Brace > --- WEAPON ----------- Improved Arc Projector Heavy Laser Enhanced Force Lance > --- INVENTORY -------- Active Sensor Suite Light Armor Plating Enhanced Force Lance [Rating: 99] Favorites ----------- Power Ion Engine Engine Ion Engine Power Core Nuclear Core Reactor Light Antimatter Reactor Propulsion Light Treads Treads Light Treads Leg Aluminum Leg Hover Unit Linear Gravjet Flight Unit VTOL Module Utility Medium Storage Unit Device Graphene Brace Storage Medium Storage Unit Processor Advanced Targeting Computer Weapon Heavy Assault Rifle Energy Gun Improved Arc Projector Ballistic Gun Heavy Assault Rifle Ballistic Cannon Enhanced Gauss Cannon Launcher Missile Launcher Piercing Weapon Enhanced Force Lance Build | -11 -10 -10 -8 -7 -7 -7 -6 -6 -5 -5 -5 -4 -4 ------- Run | Yrd Mat Sub Mat Fac Low Low Fac Low Fac Upp Upp Fac Arm Slots Evolved 12 | . . . 4 2 . . 2 . 2 . . 2 . Power 2 | . . . . 1 . . . . . . . 1 . Propulsion 4 | . . . 2 . . . 1 . . . . 1 . Utility 3 | . . . 1 1 . . . . 1 . . . . Weapon 3 | . . . 1 . . . 1 . 1 . . . . Parts Attached 71 | 7 2 6 17 2 3 . . . 15 3 . 3 13 Power 11 | 1 . . 3 1 . . . . 3 1 . . 2 Engine 4 | 1 . . 1 1 . . . . . 1 . . . Core 5 | . . . 2 . . . . . 3 . . . . Reactor 2 | . . . . . . . . . . . . . 2 Propulsion 26 | 2 . 2 8 . 2 . . . 9 . . . 3 Treads 8 | . . 2 4 . 2 . . . . . . . . Leg 6 | 2 . . 4 . . . . . . . . . . Wheel . | . . . . . . . . . . . . . . Hover 4 | . . . . . . . . . 4 . . . . Flight 8 | . . . . . . . . . 5 . . . 3 Utility 14 | 2 2 . 3 1 . . . . 1 1 . 1 3 Device 9 | 1 . . 1 1 . . . . 1 1 . 1 3 Storage 3 | 1 2 . . . . . . . . . . . . Processor 2 | . . . 2 . . . . . . . . . . Hackware . | . . . . . . . . . . . . . . Protection . | . . . . . . . . . . . . . . Artifact . | . . . . . . . . . . . . . . Weapon 20 | 2 . 4 3 . 1 . . . 2 1 . 2 5 Energy Gun 5 | 1 . . . . . . . . . 1 . 2 1 Energy Cannon . | . . . . . . . . . . . . . . Ballistic Gun 8 | 1 . 4 2 . . . . . 1 . . . . Ballistic Cannon 2 | . . . . . 1 . . . 1 . . . . Launcher 1 | . . . 1 . . . . . . . . . . Special Weapon . | . . . . . . . . . . . . . . Impact Weapon . | . . . . . . . . . . . . . . Slashing Weapon . | . . . . . . . . . . . . . . Piercing Weapon 4 | . . . . . . . . . . . . . 4 Special Melee Weapon . | . . . . . . . . . . . . . . Unidentified Prototypes 1 | . . . . . . . . . 1 . . . . Parts Lost 44 | . . 4 4 . 4 . . 11 4 3 . 2 12 Power 9 | . . . 2 . 1 . . 1 2 1 . . 2 Propulsion 14 | . . 2 1 . 1 . . 4 2 1 . . 3 Utility 6 | . . . 1 . . . . 2 . . . 1 2 Weapon 15 | . . 2 . . 2 . . 4 . 1 . 1 5 Highest Loss Streak 11 | . . 4 2 . 2 . . 11 2 3 . 2 10 To Critical Strikes . | . . . . . . . . . . . . . . Average Backups 5 | 1 4 6 8 6 7 8 8 6 3 2 3 3 3 Power 1 | . 1 1 3 1 1 1 1 . . . . . . Propulsion 1 | . 2 1 . . . 2 2 1 1 . . . . Utility 1 | . . . 1 3 3 4 4 3 2 2 2 2 2 Weapon 1 | . 1 2 2 2 1 1 1 . . . 1 1 1 Tool/Special . | . . . . . . . . . . . . . . Unused Backups 8 | . . . 2 . . . . 4 . . . . 2 Power 2 | . . . 1 . . . . 1 . . . . . Propulsion 2 | . . . 1 . . . . 1 . . . . . Utility 3 | . . . . . . . . 2 . . . . 1 Weapon 1 | . . . . . . . . . . . . . 1 Tool/Special . | . . . . . . . . . . . . . . Average Slot Usage (%) 84 | . 100 99 90 99 96 92 80 35 53 59 56 62 65 Engine 7 | . 14 14 1 15 12 7 6 1 . . 5 5 3 Core 2 | . . . 6 . . . . . 7 3 . . . Treads 11 | . . 5 15 23 26 30 26 7 . . . . . Leg 9 | . 28 22 12 7 3 . . . . . . . . Hover 2 | . . . . . . . . . 16 . . . . Flight 2 | . . . . . . . . . 4 21 17 15 14 Device 10 | . 14 14 7 6 7 7 6 6 8 15 17 18 19 Storage 7 | . 14 14 9 7 7 7 6 4 . . . . . Processor 7 | . . . 8 15 15 15 13 9 5 5 5 5 5 Energy Gun 1 | . 14 1 . . . . . . . . 3 11 11 Ballistic Gun 16 | . 14 26 26 23 14 15 13 4 4 3 . . . Ballistic Cannon 2 | . . . . . 4 7 6 1 4 5 5 5 3 Peak Build Rating 99 | 7 7 10 30 40 46 43 43 43 60 40 40 57 99 Average Rating 30 | 5 7 8 21 39 42 43 43 21 49 37 39 53 70 On Entrance 28 | . 7 7 8 30 40 43 43 43 13 43 40 40 46 Avg Prop Armor Cover (%) 7 | . . . 6 3 3 . . . 10 . . . 7 Naked Turns . | . . . . . . . . . . . . . . Heaviest Build 46 | 15 20 24 31 33 37 31 31 31 28 24 24 35 46 Greatest Support 96 | 20 20 40 60 60 96 96 96 96 36 22 18 18 45 Greatest Overweight (x) 5 | 2 . 1 2 . . . . 3 5 1 1 1 3 Average Overweight (x) . | . . . . . . . . . . . 1 1 . Largest Inventory Capacity 10 | 8 10 10 10 10 10 10 10 10 5 5 5 5 5 Average Capacity 8 | 7 9 10 10 10 10 10 10 8 5 5 5 5 5 Most Carried 10 | 4 5 8 10 9 10 10 10 10 5 5 5 5 5 Average Carried 7 | 1 4 6 8 8 9 10 10 7 5 4 5 5 4 Final Capacity 10 | 8 10 10 10 10 10 10 10 5 5 5 5 5 5 Final Carried 10 | 4 4 4 10 9 10 10 10 5 5 5 5 5 5 Class Distribution -------------------- 40% | Mutant 29% | Scavenger-Gunner 20% | Gunner 7% | Scavenger-Mutant Dominant Class ---------------- Mutant | -10/Materials Mutant | -10/Subcaves Gunner | -8/Materials Scavenger-Gunner | -7/Factory Scavenger-Gunner | -7/Lower Caves Scavenger-Gunner | -7/Lower Caves Scavenger-Gunner | -6/Factory Mutant | -6/Lower Caves Mutant | -5/Factory Scavenger-Sprinter | -5/Upper Caves Scavenger-Sprinter | -5/Upper Caves Scavenger-Gunner | -4/Factory Scavenger-Gunner | -4/Armory Resources | -11 -10 -10 -8 -7 -7 -7 -6 -6 -5 -5 -5 -4 -4 ----------- Run | Yrd Mat Sub Mat Fac Low Low Fac Low Fac Upp Upp Fac Arm Matter Collected 2037 | 243 . 199 527 33 405 . . 20 276 165 . . 169 Remotely . | . . . . . . . . . . . . . . Salvage Created 2269 | 26 . 167 883 . 533 . . . 196 206 . . 258 Parts 138 | 4 . 15 55 . 19 . . . 15 9 . . 21 Haulers Intercepted . | . . . . . . . . . . . . . . Recyclers Shooed 2 | . . . 1 . . . . . 1 . . . . Parts Field Recycled . | . . . . . . . . . . . . . . Retrieved Matter . | . . . . . . . . . . . . . . Parts Self-Destructed 52 | . . 22 . . 18 . . 5 . 7 . . . Prevented . | . . . . . . . . . . . . . . Parts Restored . | . . . . . . . . . . . . . . Kills | -11 -10 -10 -8 -7 -7 -7 -6 -6 -5 -5 -5 -4 -4 ------- Run | Yrd Mat Sub Mat Fac Low Low Fac Low Fac Upp Upp Fac Arm Combat Hostiles Destroyed 59 | . . 4 20 . 15 . . . 9 4 . . 7 Melee 5 | . . . . . . . . . . . . . 5 Guns 28 | . . 4 12 . 5 . . . 4 1 . . 2 Cannons 15 | . . . . . 7 . . . 5 3 . . . AOE 11 | . . . 8 . 3 . . . . . . . . Classes Destroyed 14 | 1 . 1 7 . 1 . . . 2 . . . 2 Worker 1 | . . . . . . . . . 1 . . . . Tunneler 1 | 1 . . . . . . . . . . . . . Recycler 3 | . . . 3 . . . . . . . . . . Watcher 1 | . . . 1 . . . . . . . . . . Swarmer 23 | . . . 7 . 4 . . . 8 . . . 4 Cutter 1 | . . . . . . . . . . . . . 1 Grunt 16 | . . . 4 . 8 . . . . 4 . . . Brawler 1 | . . . . . 1 . . . . . . . . Duelist 2 | . . . 1 . 1 . . . . . . . . Sentry 8 | . . . 7 . 1 . . . . . . . . Hunter 2 | . . . . . . . . . . . . . 2 Programmer 1 | . . . . . . . . . 1 . . . . Heavy 1 | . . . 1 . . . . . . . . . . Subdweller 4 | . . 4 . . . . . . . . . . . Best Kill Streak 6 | 1 . 2 6 . 6 . . . 6 4 . . 5 Combat Bots Only 6 | . . 2 5 . 6 . . . 5 4 . . 5 Max Kills in Single Turn 4 | 1 . 1 4 . 2 . . . 2 1 . . 1 Gunslinging . | . . . . . . . . . . . . . . Exploded 3 | . . . 3 . 2 . . . . . . . . Melee 1 | . . . . . . . . . . . . . 1 Uniques/NPCs Destroyed . | . . . . . . . . . . . . . . Combat | -11 -10 -10 -8 -7 -7 -7 -6 -6 -5 -5 -5 -4 -4 -------- Run | Yrd Mat Sub Mat Fac Low Low Fac Low Fac Upp Upp Fac Arm Hostile Shots Fired 635 | . . 45 50 . 143 . . 145 58 20 . 18 156 Missed 230 | . . 17 15 . 45 . . 53 21 6 . 5 68 Hits 405 | . . 28 35 . 98 . . 92 37 14 . 13 88 Melee 14 | . . . 4 . 2 . . . . . . . 8 Projectile 391 | . . 28 31 . 96 . . 92 37 14 . 13 80 AOE 1 | . . . . . . . . . . . . . 1 Critical Strikes 15 | . . 1 1 . 3 . . 1 . . . . 9 Actively Blocked 13 | . . . . . 3 . . 1 . . . . 9 Part Disruptions 1 | . . . . . . . . . . . . . 1 Damage Taken 7350 | . . 628 921 . 1209 . . 1215 691 264 . 333 2089 Core 2489 | . . 137 126 . 148 . . 683 107 78 . 109 1101 Absorbed by Shields . | . . . . . . . . . . . . . . Core Remaining (%) 66 | 100 . 45 77 . . 78 . 19 . . 81 . . Volleys Fired 127 | 1 . 22 33 . 34 . . 5 18 10 . . 4 Largest 4 | 2 . 2 3 . 3 . . 3 2 2 . . 4 Hottest 256 | 60 . 60 82 . 83 . . 83 75 75 . . 256 Shots Fired 296 | 2 . 41 99 . 79 . . 10 36 19 . . 10 Gun 227 | 2 . 41 96 . 44 . . 9 18 9 . . 8 Cannon 64 | . . . . . 33 . . 1 18 10 . . 2 Launcher 5 | . . . 3 . 2 . . . . . . . . Special . | . . . . . . . . . . . . . . Kinetic 282 | 1 . 41 96 . 77 . . 10 36 19 . . 2 Thermal 6 | . . . . . . . . . . . . . 6 Explosive 5 | . . . 3 . 2 . . . . . . . . Electromagnetic 3 | 1 . . . . . . . . . . . . 2 Robot Hit Streak 23 | 1 . 21 23 . 15 . . 3 6 5 . . 3 Robot Miss Streak 3 | . . 2 3 . 2 . . 2 3 2 . . 1 Penetration Max 1 | . . . . . . . . . 1 . . . . Secondary Targets 2 | . . 1 1 . . . . . . . . . . Max Gunslinging Chain 1 | . . 1 1 . . . . . . . . . . Shots Hit Robots 214 | 1 . 34 69 . 58 . . 5 20 14 . . 13 Core Hits 108 | 1 . 8 41 . 27 . . 2 12 9 . . 8 Critical Kills 1 | . . . . . . . . . . 1 . . . Critical Parts Destroyed . | . . . . . . . . . . . . . . Critical Strikes 8 | . . . 1 . 2 . . . 3 2 . . . Destroy 2 | . . . 1 . . . . . . 1 . . . Blast 6 | . . . . . 2 . . . 3 1 . . . Melee Attacks 12 | . . . . . . . . . . . . . 12 Impact . | . . . . . . . . . . . . . . Slashing . | . . . . . . . . . . . . . . Piercing 12 | . . . . . . . . . . . . . 12 Sneak Attacks . | . . . . . . . . . . . . . . Combat Hostiles . | . . . . . . . . . . . . . . Follow-up Attacks . | . . . . . . . . . . . . . . Damage Inflicted 5552 | 15 . 614 1754 . 1451 . . 131 697 387 . . 503 Guns 2795 | 15 . 614 1060 . 529 . . 100 283 111 . . 83 Cannons 1240 | . . . . . 533 . . 30 401 276 . . . Explosions 1068 | . . . 679 . 389 . . . . . . . . Melee 420 | . . . . . . . . . . . . . 420 Ramming 29 | . . . 15 . . . . 1 13 . . . . Kinetic 3937 | . . 614 1060 . 1062 . . 130 684 387 . . . Thermal 124 | . . . 41 . . . . . . . . . 83 Explosive 971 | . . . 582 . 389 . . . . . . . . Electromagnetic 71 | 15 . . 56 . . . . . . . . . . Impact . | . . . . . . . . . . . . . . Slashing . | . . . . . . . . . . . . . . Piercing 420 | . . . . . . . . . . . . . 420 Highest Corruption 3 | . . . . . 3 3 . . . . . . 3 Average Corruption 2 | . . . . . 3 3 . . . . . . 2 Corruption Purged . | . . . . . . . . . . . . . . Corruption Blocked . | . . . . . . . . . . . . . . Effects 10 | . . . . . 9 . . . . . . . 1 Message Errors 2 | . . . . . 2 . . . . . . . . Matter Fused 4 | . . . . . 3 . . . . . . . 1 Heat Flow Errors 1 | . . . . . 1 . . . . . . . . Data Loss (major) 1 | . . . . . 1 . . . . . . . . Misfires 1 | . . . . . 1 . . . . . . . . Weapon Failures 1 | . . . . . 1 . . . . . . . . Overload Shots . | . . . . . . . . . . . . . . Overflow Damage 81 | . . . 13 . 27 . . . 7 . . . 34 Projectiles 7 | . . . . . . . . . 7 . . . . Explosions 40 | . . . 13 . 27 . . . . . . . . Melee 34 | . . . . . . . . . . . . . 34 Knockbacks 13 | . . . . . 6 . . 1 5 1 . . . Impact . | . . . . . . . . . . . . . . Kinetic 13 | . . . . . 6 . . 1 5 1 . . . Secondary . | . . . . . . . . . . . . . . Self-Inflicted Damage 241 | . . . 181 . 54 . . . 6 . . . . Shots 6 | . . . 5 . 1 . . . . . . . . Rammed 3 | . . . . . . . . 1 2 . . . . Targets Rammed 6 | . . . 3 . . . . 1 2 . . . . Kicked 3 | . . . 3 . . . . . . . . . . Crushed . | . . . . . . . . . . . . . . Highest Temperature 259 | . . . 45 . 259 . . . 59 31 . . 175 Average Temperature 38 | . . . 17 . 48 . . . 21 14 . . 72 Received Heat Transfer 1005 | . . 162 126 . 342 . . 60 36 117 . 54 108 Siege Activations . | . . . . . . . . . . . . . . Martial Activations . | . . . . . . . . . . . . . . Shielding Activations . | . . . . . . . . . . . . . . Robots Disrupted . | . . . . . . . . . . . . . . Combat Hostiles . | . . . . . . . . . . . . . . Robots Corrupted . | . . . . . . . . . . . . . . Combat Hostiles . | . . . . . . . . . . . . . . Parts Fried . | . . . . . . . . . . . . . . Impact Corruptions . | . . . . . . . . . . . . . . Robots Melted . | . . . . . . . . . . . . . . Combat Hostiles . | . . . . . . . . . . . . . . Parts Melted . | . . . . . . . . . . . . . . Heat Transferred 198 | . . . 50 . . . . . . . . . 148 Parts Sabotaged . | . . . . . . . . . . . . . . Parts Stolen . | . . . . . . . . . . . . . . Parts Stripped . | . . . . . . . . . . . . . . Power Chain Reactions 2 | . . . 2 . . . . . . . . . . Alert | -11 -10 -10 -8 -7 -7 -7 -6 -6 -5 -5 -5 -4 -4 ------- Run | Yrd Mat Sub Mat Fac Low Low Fac Low Fac Upp Upp Fac Arm Maximum Alert Level 1 | . . . 1 . . . . . . . . . . Low Security (%) 87 | 100 100 . 69 100 . . 100 . 100 . . 100 100 Level 1 12 | . . . 30 . . . . . . . . . . Level 2 . | . . . . . . . . . . . . . . Level 3 . | . . . . . . . . . . . . . . Level 4 . | . . . . . . . . . . . . . . Level 5 . | . . . . . . . . . . . . . . High Security . | . . . . . . . . . . . . . . Max Security . | . . . . . . . . . . . . . . Peak Influence 275 | 5 . . 275 100 . . . . 149 . . 34 139 Initial 100 | . . . . 100 . . . . . . . 34 . Average 70 | . . . 121 64 . . . . 60 . . 15 35 Influence Increases 1734 | 5 . . 646 . 310 . . 15 354 90 . . 314 Destroy 0b10 Robot/C 1120 | . . . 400 . 300 . . . 200 80 . . 140 Destroy 0b10 Robot/NC 35 | 5 . . 20 . . . . . 10 . . . . Destroy Leader 194 | . . . 122 . 10 . . . 32 10 . . 20 Allied During Kill 6 | . . . . . . . . . 6 . . . . Disable Machine 45 | . . . 45 . . . . . . . . . . Destroy Structure 49 | . . . 29 . . . . . 16 . . . 4 Lose Combat Pursuer 285 | . . . 30 . . . . 15 90 . . . 150 Influence Decreases 1600 | 5 . . 424 202 304 26 . 15 239 123 27 55 180 Entered New Map 217 | . . . . 122 8 6 . . . 43 17 21 . Time Decay 1133 | 5 . . 384 80 256 20 . 15 219 50 10 34 60 Lost Part 250 | . . . 40 . 40 . . . 20 30 . . 120 Squads Dispatched 9 | . . . 2 . . . . . 4 . . 1 2 Investigation . | . . . . . . . . . . . . . . Extermination 2 | . . . . . . . . . 1 . . . 1 Reinforcement 7 | . . . 2 . . . . . 3 . . 1 1 Assault . | . . . . . . . . . . . . . . Garrison . | . . . . . . . . . . . . . . Intercept . | . . . . . . . . . . . . . . Searches Triggered . | . . . . . . . . . . . . . . Construction Impeded . | . . . . . . . . . . . . . . Haulers Reinforced . | . . . . . . . . . . . . . . Active Scanning Responses . | . . . . . . . . . . . . . . Cargo Convoy Interrupts . | . . . . . . . . . . . . . . Stealth | -11 -10 -10 -8 -7 -7 -7 -6 -6 -5 -5 -5 -4 -4 --------- Run | Yrd Mat Sub Mat Fac Low Low Fac Low Fac Upp Upp Fac Arm Distress Signals 4 | . . . 2 . . . . . 1 . . . 1 Communications Jammed . | . . . . . . . . . . . . . . Distress Signals . | . . . . . . . . . . . . . . Times Spotted 122 | . 2 5 28 . 15 . . 6 20 4 . 6 36 Peak Tracking Total 19 | . 1 2 6 . 6 . . 4 7 4 . 6 19 Tactical Retreats 10 | . . . 2 . . . . 1 3 . . . 4 Traps | -11 -10 -10 -8 -7 -7 -7 -6 -6 -5 -5 -5 -4 -4 ------- Run | Yrd Mat Sub Mat Fac Low Low Fac Low Fac Upp Upp Fac Arm Traps Triggered 1 | . . . . . . . . . 1 . . . . Indirectly . | . . . . . . . . . . . . . . Trap Hack Attempts . | . . . . . . . . . . . . . . Triggered . | . . . . . . . . . . . . . . Disarmed . | . . . . . . . . . . . . . . Reprogrammed 1 | . . . 1 . . . . . . . . . . Reused . | . . . . . . . . . . . . . . Traps Extracted . | . . . . . . . . . . . . . . Installed . | . . . . . . . . . . . . . . Triggered . | . . . . . . . . . . . . . . Machines | -11 -10 -10 -8 -7 -7 -7 -6 -6 -5 -5 -5 -4 -4 ---------- Run | Yrd Mat Sub Mat Fac Low Low Fac Low Fac Upp Upp Fac Arm Machines Disabled 4 | . . . 3 . 1 . . . . . . . . Max in Single Turn 2 | . . . 2 . 1 . . . . . . . . Machines Repaired . | . . . . . . . . . . . . . . Machines Dismantled . | . . . . . . . . . . . . . . Machines Sabotaged . | . . . . . . . . . . . . . . Overloaded Fab Kills . | . . . . . . . . . . . . . . Hacking | -11 -10 -10 -8 -7 -7 -7 -6 -6 -5 -5 -5 -4 -4 --------- Run | Yrd Mat Sub Mat Fac Low Low Fac Low Fac Upp Upp Fac Arm Machines Accessed 4 | . . . 2 . 1 . . . 1 . . . . Terminals 3 | . . . 1 . 1 . . . 1 . . . . Fabricators . | . . . . . . . . . . . . . . Repair Stations . | . . . . . . . . . . . . . . Recycling Units . | . . . . . . . . . . . . . . Scanalyzers 1 | . . . 1 . . . . . . . . . . Garrison Access . | . . . . . . . . . . . . . . Total Hacks 10 | . . . 5 . 4 . . . 1 . . . . Successful 9 | . . . 4 . 4 . . . 1 . . . . Failed 1 | . . . 1 . . . . . . . . . . Catastrophic . | . . . . . . . . . . . . . . Database Lockouts . | . . . . . . . . . . . . . . Manual . | . . . . . . . . . . . . . . Terminals 6 | . . . 1 . 4 . . . 1 . . . . Fabricators . | . . . . . . . . . . . . . . Repair Stations . | . . . . . . . . . . . . . . Recycling Units . | . . . . . . . . . . . . . . Scanalyzers 4 | . . . 4 . . . . . . . . . . Garrison Access . | . . . . . . . . . . . . . . Terminal Hacks 6 | . . . 1 . 4 . . . 1 . . . . Record 4 | . . . . . 4 . . . . . . . . Open DSF 1 | . . . . . . . . . 1 . . . . Reprogram Traps 1 | . . . 1 . . . . . . . . . . Fabricator Hacks . | . . . . . . . . . . . . . . Repair Station Hacks . | . . . . . . . . . . . . . . Recycling Unit Hacks . | . . . . . . . . . . . . . . Scanalyzer 3 | . . . 3 . . . . . . . . . . Insert Component 1 | . . . 1 . . . . . . . . . . Analyze 1 | . . . 1 . . . . . . . . . . Retrieve Study 1 | . . . 1 . . . . . . . . . . Garrison Access Hacks . | . . . . . . . . . . . . . . Unauthorized Hacks . | . . . . . . . . . . . . . . Terminals . | . . . . . . . . . . . . . . Fabricators . | . . . . . . . . . . . . . . Repair Stations . | . . . . . . . . . . . . . . Recycling Units . | . . . . . . . . . . . . . . Scanalyzers . | . . . . . . . . . . . . . . Garrison Access . | . . . . . . . . . . . . . . Data Cores Recovered . | . . . . . . . . . . . . . . Used . | . . . . . . . . . . . . . . Hacking Detections 2 | . . . 1 . 1 . . . . . . . . Full Trace Events . | . . . . . . . . . . . . . . Feedback Events . | . . . . . . . . . . . . . . Feedback Blocked . | . . . . . . . . . . . . . . Robot Schematics Acquired . | . . . . . . . . . . . . . . Robots Built . | . . . . . . . . . . . . . . Authchips . | . . . . . . . . . . . . . . Time . | . . . . . . . . . . . . . . Total Robot Build Rating . | . . . . . . . . . . . . . . Part Schematics Acquired 1 | . . . 1 . . . . . . . . . . Parts Built . | . . . . . . . . . . . . . . Authchips . | . . . . . . . . . . . . . . Time . | . . . . . . . . . . . . . . Total Part Build Rating . | . . . . . . . . . . . . . . Part Studies Acquired 1 | . . . 1 . . . . . . . . . . Parts Repaired . | . . . . . . . . . . . . . . Time . | . . . . . . . . . . . . . . Parts Recycled . | . . . . . . . . . . . . . . Recycled Matter . | . . . . . . . . . . . . . . Retrieved Matter . | . . . . . . . . . . . . . . Retrieved Components . | . . . . . . . . . . . . . . Parts Scanalyzed 1 | . . . 1 . . . . . . . . . . Part Schematics Acquired 1 | . . . 1 . . . . . . . . . . Parts Damaged . | . . . . . . . . . . . . . . Bothacking | -11 -10 -10 -8 -7 -7 -7 -6 -6 -5 -5 -5 -4 -4 ------------ Run | Yrd Mat Sub Mat Fac Low Low Fac Low Fac Upp Upp Fac Arm Used RIF Installer . | . . . . . . . . . . . . . . Robots Hacked . | . . . . . . . . . . . . . . Non-combat . | . . . . . . . . . . . . . . Combat . | . . . . . . . . . . . . . . Robot Hacks Applied . | . . . . . . . . . . . . . . Relay Couplers Released . | . . . . . . . . . . . . . . Fabnet Peak Effective % . | . . . . . . . . . . . . . . Robots Rewired . | . . . . . . . . . . . . . . Allies Hacked . | . . . . . . . . . . . . . . Hacks Repelled . | . . . . . . . . . . . . . . Allies | -11 -10 -10 -8 -7 -7 -7 -6 -6 -5 -5 -5 -4 -4 -------- Run | Yrd Mat Sub Mat Fac Low Low Fac Low Fac Upp Upp Fac Arm Total Allies 1 | . . . . . . . . 1 . . . . . Largest Group 1 | . . . . . . . . 1 1 . . . . Highest-Rated Group 127 | . . . . . . . . 127 127 . . . . Highest-Rated Ally 127 | . . . . . . . . 127 127 . . . . Total Orders . | . . . . . . . . . . . . . . Ally Attacks 4 | . . . . . . . . . 4 . . . . Total Damage 336 | . . . . . . . . . 336 . . . . Kills 2 | . . . . . . . . . 2 . . . . Allies Corrupted . | . . . . . . . . . . . . . . Allies Melted . | . . . . . . . . . . . . . . Intel | -11 -10 -10 -8 -7 -7 -7 -6 -6 -5 -5 -5 -4 -4 ------- Run | Yrd Mat Sub Mat Fac Low Low Fac Low Fac Upp Upp Fac Arm Active Infowar (turns) 2190 | 11 235 1049 24 . . . . . 314 115 21 94 327 Sensors 798 | . . . . . . . . . 314 115 21 94 254 Seismic 1319 | 11 235 1049 24 . . . . . . . . . . Cloaking 73 | . . . . . . . . . . . . . 73 Robot Analysis Total . | . . . . . . . . . . . . . . Derelict Logs Recovered 2 | . . . . . . . . . . 2 . . . Drone Launches . | . . . . . . . . . . . . . . Drone Recoveries . | . . . . . . . . . . . . . . Exploration | -11 -10 -10 -8 -7 -7 -7 -6 -6 -5 -5 -5 -4 -4 ------------- Run | Yrd Mat Sub Mat Fac Low Low Fac Low Fac Upp Upp Fac Arm Turns Passed 4982 | 95 235 1049 1046 161 972 56 78 122 605 115 21 94 333 Spaces Moved 3192 | 64 53 488 533 96 513 34 48 119 597 190 18 83 356 Core 142 | 9 . . . . . . . 104 22 . . . 7 Treads 1073 | . . 116 251 96 513 34 48 15 . . . . . Legs 762 | 55 53 372 282 . . . . . . . . . . Wheels . | . . . . . . . . . . . . . . Hover 471 | . . . . . . . . . 471 . . . . Flight 744 | . . . . . . . . . 104 190 18 83 349 Fastest Speed 26 | 50 120 120 120 166 165 165 165 50 28 26 109 109 34 Average Speed 123 | 121 120 178 139 166 165 165 165 88 80 42 109 109 73 Slowest Speed 435 | 150 120 190 260 166 170 165 165 200 435 109 109 109 200 Overloaded Moves . | . . . . . . . . . . . . . . Propulsion Burnouts . | . . . . . . . . . . . . . . Robots Hopped . | . . . . . . . . . . . . . . Potential Cave-ins . | . . . . . . . . . . . . . . Cave-ins Triggered . | . . . . . . . . . . . . . . Exploration Rate (%) 21 | 4 12 34 53 4 66 7 1 18 20 48 7 4 28 Regions Visited 13 Branch Regions 7 Pre-discovered Areas . | . . . . . . . . . . . . . . Known Exits Taken 3 | . . . . . . 1 . 1 . 1 . . . Unknown Exits Taken 10 | 1 1 1 1 1 1 . 1 . 1 . 1 1 . Scrap Searched 3 | . . . . . 2 . . . . 1 . . . Spaces Dug . | . . . . . . . . . . . . . . Terrain Destroyed 69 | . . . 29 . 21 . . . 10 6 . . 3 Melee . | . . . . . . . . . . . . . . Projectile 23 | . . . 2 . 2 . . . 10 6 . . 3 AOE 46 | . . . 27 . 19 . . . . . . . . Terrain Rammed . | . . . . . . . . . . . . . . Walls Destroyed . | . . . . . . . . . . . . . . Machines Disabled . | . . . . . . . . . . . . . . Actions | -11 -10 -10 -8 -7 -7 -7 -6 -6 -5 -5 -5 -4 -4 --------- Run | Yrd Mat Sub Mat Fac Low Low Fac Low Fac Upp Upp Fac Arm Total 3928 | 75 224 621 759 98 562 34 47 125 679 205 19 85 395 Wait 475 | . 169 101 149 . 8 1 . . 47 . . . . Move 3179 | 63 52 487 532 95 512 33 47 118 596 189 17 82 356 Hop . | . . . . . . . . . . . . . . Pick Up 22 | 4 . 3 10 1 2 . . . . 1 . . 1 Fast Attach 42 | 7 . . 4 . 1 . . . 13 3 1 3 10 Attach 15 | . . 4 5 2 2 . . 1 . . . . 1 Detach . | . . . . . . . . . . . . . . Swap 29 | . 2 4 15 . 3 . . . 2 . . . 3 Drop 21 | . 1 . 8 . . . . . 1 2 1 . 8 Fire 127 | 1 . 22 33 . 34 . . 5 18 10 . . 4 Melee 12 | . . . . . . . . . . . . . 12 Ram 2 | . . . . . . . . . 2 . . . . Kick 3 | . . . 3 . . . . . . . . . . Crush 1 | . . . . . . . . 1 . . . . . Escape Stasis . | . . . . . . . . . . . . . . Rewire . | . . . . . . . . . . . . . . Trap . | . . . . . . . . . . . . . . Miscellaneous . | . . . . . . . . . . . . . . Route ------- -11/Scrapyard -10/Materials -10/Subcaves -8/Materials -7/Factory -7/Lower Caves -7/Lower Caves -6/Factory (discovered 5 exits: Fac x4 / [*Low]) -6/Lower Caves -5/Factory -5/Upper Caves -5/Upper Caves -4/Factory -4/Armory (discovered 1 exit: [*Res]) History --------- Turn | Location | Event 19 | -11/Scrapyard | Discovered new exit (range 15) 96 | -11/Scrapyard | Entered Materials 305 | -10/Materials | Build established: Mutant 314 | -10/Materials | Discovered new exit (range 7) 331 | -10/Materials | Entered Subcaves 332 | -10/Subcaves | Approached by a straggling Scientist 946 | -10/Subcaves | Shifting Twisted Machinery released Sub. Machine Gun 957 | -10/Subcaves | Shifting Twisted Machinery released Sub. Monowheel 1191 | -10/Subcaves | Core integrity fell below 50% 1218 | -10/Subcaves | Lost 4 parts (2n2w) 1365 | -10/Subcaves | Discovered new exit (range 9) 1380 | -10/Subcaves | Entered Materials 1380 | -8/Materials | Evolved 4 slots: Propulsion x2, Utility x1, Weapon x1 1702 | -8/Materials | Build established: Gunner 2378 | -8/Materials | Discovered new exit (range 15) 2421 | -8/Materials | Found Prototype Device 2426 | -8/Materials | Entered Factory 2426 | -7/Factory | Evolved 2 slots: Power x1, Utility x1 2566 | -7/Factory | Discovered new exit (range 5) 2587 | -7/Factory | Entered Lower Caves 2694 | -7/Lower Caves | Build established: Scavenger-Gunner 2917 | -7/Lower Caves | Attracted the attention of an 0b10 base 2970 | -7/Lower Caves | Learned 8 Factory zone layouts 2970 | -7/Lower Caves | Learned 6 Proximity Caves zone layouts 3007 | -7/Lower Caves | Attracted the attention of an 0b10 checkpoint 3448 | -7/Lower Caves | Acquired the password to a Derelict Tinkerer's latest research 3544 | -7/Lower Caves | Discovered new exit (range 11) 3559 | -7/Lower Caves | Entered another Lower Caves area 3560 | -7/Lower Caves | Identified exit to Factory 3615 | -7/Lower Caves | Entered Factory 3615 | -6/Factory | Evolved 2 slots: Propulsion x1, Weapon x1 3616 | -6/Factory | Identified exit to Factory 3635 | -6/Factory | Discovered new exit (range 4) 3693 | -6/Factory | Entered Lower Caves 3760 | -6/Lower Caves | Attracted the attention of an 0b10 checkpoint 3764 | -6/Lower Caves | Core integrity fell below 50% 3803 | -6/Lower Caves | Lost 11 parts (1p4n2u4w) 3812 | -6/Lower Caves | CL-ANK showed up to help 3814 | -6/Lower Caves | CL-ANK revealed a hidden path 3815 | -6/Lower Caves | Core integrity fell below 20% 3815 | -6/Lower Caves | Entered Factory 3815 | -5/Factory | Accompanied by 1 ally (CL-ANK) 3815 | -5/Factory | Evolved 2 slots: Utility x1, Weapon x1 4019 | -5/Factory | Build established: Mutant 4410 | -5/Factory | Discovered new exit (range 9) 4420 | -5/Factory | Entered Upper Caves 4460 | -5/Upper Caves | Spotted B-75 Beast 4461 | -5/Upper Caves | Learned 4 Factory zone layouts 4480 | -5/Upper Caves | Identified exit to Upper Caves 4535 | -5/Upper Caves | Entered another Upper Caves area 4540 | -5/Upper Caves | Lost 3 parts (1p1n1w) 4549 | -5/Upper Caves | Discovered new exit (range 8) 4556 | -5/Upper Caves | Entered Factory 4556 | -4/Factory | Evolved 2 slots: Power x1, Propulsion x1 4642 | -4/Factory | Discovered new exit (range 9) 4650 | -4/Factory | Entered Armory 4978 | -4/Armory | Core integrity fell below 50% 4982 | -4/Armory | Core integrity fell below 20% 4983 | -4/Armory | Discovered new exit (range 4) 4983 | -4/Armory | Destroyed by H-71 Marshal with Heavy Mass Driver Last Messages --------------- Slug penetrates Wall. C-35 Carver destroyed. Weight Redist. System destroyed. Adv. Cloaking Device destroyed. Slug penetrates Wall. Penetrated by Slug. Slug penetrates Wall. Penetrated by Slug. Slug penetrates C-35 Carver. S-27 Virus destroyed. Penetrated by Slug. Slug penetrates Y-72 Warden. Penetrated by Slug. Enh. Force Lance destroyed. Knocked back. ALERT: Potential suspicious activity detected, Programmers report to Armory Zone 7C. EXIT=FOUND Penetrated by Slug. Slug penetrates Wall. Map ----- +----------------------------------------------------+ | #? """"" # #??????# """ """ #?# #? | | ## """"" # #??????# """ """ #?# ##+#? | | # # #?###### #?# #? ?? | | "" /!/ # #####/## ### # #?# # """ | | " /!/ =% #######+######## # | | "" /!/ #????# + | | ########### #????# ########## """ | | "" """ ## ############## ##????# #????????? ? | | "" """ #?## # #?????# #??????????#+# | | "" """ #??# "???" + #?????# #????????????? | | #??# "???" # #?????# #????????????? | | ######"##??# "???" #[ ##????# #????????????? | | ?????# #???# "???" #%H"#????# #????????????? | | ?????# #???# "???" #Y ##????# ?????????????? | | ?????# #???# """"" # #?????# ?????????????? | | ?????# #???# " #????? #??????????? | | ?????# ##### # ##### #??????????? | | ?????# / # " #??????????? | | ?????####### #! "T ???????????? | | ???????????# #%/##### #??????????? | | ???????????##############=*#?????? #??????????? | | ???????????????????????##cY##????????##??????????? | | ???????????????????????# % #????????????????????? | | ???????????????????????#Y #????????????????????? | | ?????????????????????####p/####??????????????????? | | ?????????????????????# p@Y #??????????????????? | | ?????????????????????# < Y% #??????????????????? | | ?????????????????????# #??????????????????? | | ?????????????????????####++####??????????????????? | | ?????????????????????????????????????????????????? | | ?????????????????????????????????????????????????? | | ?????????????????????????????????????????????????? | | ?????????????????????????????????????????????????? | | ?????????????????????????????????????????????????? | | ?????????????????????????????????????????????????? | | ?????????????????????????????????????????????????? | | ?????????????????????????????????????????????????? | | ?????????????????????????????????????????????????? | | ?????????????????????????????????????????????????? | | ?????????????????????????????????????????????????? | | ?????????????????????????????????????????????????? | | ?????????????????????????????????????????????????? | | ?????????????????????????????????????????????????? | | ?????????????????????????????????????????????????? | | ?????????????????????????????????????????????????? | | ?????????????????????????????????????????????????? | | ?????????????????????????????????????????????????? | | ?????????????????????????????????????????????????? | | ?????????????????????????????????????????????????? | | ?????????????????????????????????????????????????? | +----------------------------------------------------+ Best States ------------- Heat Dissipation 43 Coolant Potential 100 Energy Generation 37 Energy Capacity 315 Matter Stores 300 Matter Capacity 300 Sight Range 16 Robot Scan Range 15 Terrain Scan Density 10 Cloak Strength 4 Additional Mass Support 6 Phase Shifting 5 Evasion (%) 64 Targeting Accuracy 8 Core Analysis 6 Recoil Reduction 4 Kinecelleration 30 Item Schematics ----------------- Missile Launcher | -8/Materials | Scanalyzed Robot Schematics ------------------ None Fabricated ------------ Nothing Repaired ---------- Nothing Studied --------- Hvy. Assault Rifle | -8/Materials | Hacked Alien Tech Used ----------------- None Achievements -------------- I Laugh At Your Crits Challenges ------------ None Game ------ Seed GlidesysBarrageTrident Manual? 0 Play Time 00:46:04 Cumulative 41.5 hours Start 2025.10.27 @ 02:34:58 End 2025.10.27 @ 03:18:22 Sessions 1 Manual Loads 0 Difficulty Rogue Special Mode None Game No. 76 Rogue 73 Adventurer 0 Explorer 3 Win Type - Total 1 Types 1/0/0/0/0/0/0/0/0/0 Lore% 37 Gallery% 30 Achievement% 20 Wizard Run 0 Options --------- Layout 1 ASCII 0 Keyboard 1 Movement Numpad Keybinds 0 Fullscreen 1 Font 24/Smallcaps Map View 50x35 Zoom Use 0% Tactical HUD 0 Map Filters NONE Filters NONE Steam 1 RUN: 21b94f29-aeb9-48bc-895c-35b2d16ded43